fUST/lending_fUST_20240705
["ID","MTS","AMOUNT","RATE_DAILY","PERIOD"]
[331253757,1720161050582,-450.0,0.00054795,120]
[331253758,1720161050592,-500.0,0.00054795,120]
[331253759,1720161050601,-500.0,0.00054795,120]
[331253760,1720161050610,-245.0,0.00054795,120]
[331253761,1720161050620,-500.0,0.00054795,120]
[331253762,1720161050629,-500.0,0.00054795,120]
[331253763,1720161050638,-500.0,0.00054795,120]
[331253764,1720161050648,-500.0,0.00054795,120]
[331253765,1720161050657,-500.0,0.00054795,120]
[331253766,1720161050666,-500.0,0.00054795,120]
[331253767,1720161050675,-500.0,0.00054795,120]
[331253768,1720161050684,-500.0,0.00054795,120]
[331253769,1720161050694,-500.0,0.00054795,120]
[331253770,1720161050703,-500.0,0.00054795,120]
[331253771,1720161050712,-500.0,0.00054795,120]
[331253772,1720161050728,-174.5,0.00054795,120]
[331253773,1720161050740,-500.0,0.00054795,120]
[331253774,1720161050754,-500.0,0.00054795,120]
[331253775,1720161050764,-500.0,0.00054795,120]
[331253776,1720161050773,-500.0,0.00054795,120]
[331253777,1720161050783,-500.0,0.00054795,120]
[331253778,1720161050792,-500.0,0.00054795,120]
[331253779,1720161050801,-500.0,0.00054795,120]
[331253780,1720161050810,-367.45,0.00054795,120]
[331253781,1720161050819,-500.0,0.00054795,120]
[331253782,1720161050828,-500.0,0.00054795,120]
[331253783,1720161050837,-500.0,0.00054795,120]
[331253784,1720161050846,-150.48625355,0.00055242,2]
[331253785,1720161050855,-445.70596667,0.0005529,120]
[331253786,1720161050864,-13432.1214245,0.00055322,6]
[331253787,1720161050875,-500.0,0.00055342,120]
[331253788,1720161050884,-500.0,0.00055342,120]
[331253789,1720161050896,-200.0,0.00055342,7]
[331253790,1720161050907,-500.0,0.00055342,120]
[331253791,1720161050917,-505.13282503,0.00055342,120]
[331253792,1720161050927,-405.0877249,0.00055342,120]
[331253793,1720161050936,-500.0,0.00055342,120]
[331253794,1720161050946,-500.0,0.00055342,120]
[331253795,1720161050956,-500.0,0.00055342,120]
[331253796,1720161050965,-500.0,0.00055342,120]
[331253797,1720161050974,-500.0,0.00055342,120]
[331253798,1720161050984,-500.0,0.00055342,120]
[331253799,1720161050993,-500.0,0.00055342,120]
[331253800,1720161051004,-500.0,0.00055342,120]
[331253801,1720161051013,-500.0,0.00055342,120]
[331253802,1720161051022,-500.0,0.00055342,120]
[331253803,1720161051031,-500.0,0.00055342,120]
[331253804,1720161051040,-774.94,0.00055342,120]
[331253805,1720161051049,-500.0,0.00055342,120]
[331253806,1720161051057,-500.0,0.00055342,120]
[331253807,1720161051067,-500.0,0.00055342,120]
[331253808,1720161051077,-1040.79,0.00055342,120]
[331253809,1720161051086,-500.0,0.00055342,120]
[331253810,1720161051096,-500.0,0.00055342,120]
[331253811,1720161051105,-776.98,0.00055342,120]
[331253812,1720161051114,-500.0,0.00055342,120]
[331253813,1720161051124,-500.0,0.00055342,120]
[331253814,1720161051134,-500.0,0.00055342,120]
[331253815,1720161051143,-500.0,0.00055342,120]
[331253816,1720161051152,-500.0,0.00055342,120]
[331253817,1720161051161,-500.0,0.00055342,120]
[331253818,1720161051170,-500.0,0.00055342,120]
[331253819,1720161051180,-500.0,0.00055342,120]
[331253820,1720161051190,-778.44,0.00055342,120]
[331253821,1720161051199,-500.0,0.00055342,20]
[331253822,1720161051208,-1334.42,0.00055342,120]
[331253823,1720161051217,-500.0,0.00055342,120]
[331253824,1720161051228,-500.0,0.00055342,120]
[331253825,1720161051237,-500.0,0.00055342,120]
[331253826,1720161051247,-500.0,0.00055342,120]
[331253827,1720161051258,-876.06,0.00055342,120]
[331253828,1720161051268,-500.0,0.00055342,120]
[331253829,1720161051279,-500.0,0.00055342,120]
[331253830,1720161051290,-500.0,0.00055342,120]
[331253831,1720161051302,-500.0,0.00055342,120]
[331253832,1720161051314,-500.0,0.00055342,120]
[331253833,1720161051324,-500.0,0.00055342,120]
[331253834,1720161051333,-500.0,0.00055342,120]
[331253835,1720161051343,-500.0,0.00055342,120]
[331253836,1720161051352,-500.0,0.00055342,120]
[331253837,1720161051362,-500.0,0.00055342,120]
[331253838,1720161051372,-500.0,0.00055342,120]
[331253839,1720161051381,-500.0,0.00055342,120]
[331253840,1720161051395,-780.42,0.00055342,120]
[331253841,1720161051405,-500.0,0.00055342,120]
[331253842,1720161051414,-500.0,0.00055342,120]
[331253843,1720161051423,-983.03,0.00055342,120]
[331253844,1720161051433,-7842.55,0.00055342,120]
[331253845,1720161051445,-500.0,0.00055342,120]
[331253846,1720161051457,-500.0,0.00055342,120]
[331253847,1720161051472,-500.0,0.00055342,120]
[331253848,1720161051485,-500.0,0.00055342,120]
[331253849,1720161051496,-500.0,0.00055342,120]
[331253850,1720161051509,-511.41766417,0.00055342,120]
[331253851,1720161051519,-500.0,0.00055342,120]
[331253852,1720161051530,-500.0,0.00055342,30]
[331253853,1720161051541,-500.0,0.00055342,120]
[331253854,1720161051551,-500.0,0.00055342,120]
[331253855,1720161051561,-500.0,0.00055342,120]
[331253856,1720161051572,-500.0,0.00055342,120]
[331253857,1720161051581,-500.0,0.00055342,120]
[331253858,1720161051590,-500.0,0.00055342,120]
[331253859,1720161051599,-500.0,0.00055342,120]
[331253860,1720161051609,-584.4,0.00055342,120]
[331253861,1720161051618,-500.0,0.00055342,120]
[331253862,1720161051627,-500.0,0.00055342,120]
[331253863,1720161051637,-500.0,0.00055342,120]
[331253864,1720161051646,-500.0,0.00055342,120]
[331253865,1720161051658,-500.0,0.00055342,120]
[331253866,1720161051667,-500.0,0.00055342,120]
[331253867,1720161051677,-500.0,0.00055342,120]
[331253868,1720161051686,-500.0,0.00055342,120]
[331253869,1720161051696,-500.0,0.00055342,120]
[331253870,1720161051706,-670.8,0.00055342,120]
[331253871,1720161051715,-500.0,0.00055342,120]
[331253872,1720161051725,-500.0,0.00055342,120]
[331253873,1720161051737,-500.0,0.00055342,120]
[331253874,1720161051747,-500.0,0.00055342,120]
[331253875,1720161051758,-500.0,0.00055342,120]
[331253876,1720161051768,-500.0,0.00055342,120]
[331253877,1720161051777,-731.58,0.00055342,120]
[331253878,1720161051786,-500.0,0.00055342,120]
[331253879,1720161051796,-500.0,0.00055342,120]
[331253880,1720161051806,-500.0,0.00055342,120]
[331253881,1720161051816,-500.0,0.00055342,120]
[331253882,1720161051827,-500.0,0.00055342,120]
[331253883,1720161051836,-500.0,0.00055342,120]
[331253884,1720161051845,-500.0,0.00055342,120]
[331253885,1720161051855,-667.14,0.00055342,120]
[331253886,1720161051864,-500.0,0.00055342,120]
[331253887,1720161051874,-500.0,0.00055342,120]
[331253888,1720161051884,-500.0,0.00055342,120]
[331253889,1720161051893,-500.0,0.00055342,120]
[331253890,1720161051903,-3106.8,0.00055342,120]
[331253891,1720161051912,-808.47,0.00055342,120]
[331253892,1720161051921,-3479.45,0.00055342,120]
[331253893,1720161051930,-500.0,0.00055342,120]
[331253894,1720161051939,-500.0,0.00055342,120]
[331253895,1720161051949,-500.0,0.00055342,120]
[331253896,1720161051958,-691.25,0.00055342,120]
[331253897,1720161051967,-574.85,0.00055342,120]
[331253898,1720161051977,-500.0,0.00055342,120]
[331253899,1720161051988,-160.10549775,0.00055342,120]
[331253900,1720161051997,-500.0,0.00055342,120]
[331253901,1720161052007,-500.0,0.00055342,120]
[331253902,1720161052016,-500.0,0.00055342,120]
[331253903,1720161052026,-500.0,0.00055342,120]
[331253904,1720161052038,-786.58,0.00055342,120]
[331253905,1720161052051,-500.0,0.00055342,120]
[331253906,1720161052063,-500.0,0.00055342,120]
[331253907,1720161052073,-538.64752156,0.00055342,120]
[331253908,1720161052084,-500.0,0.00055342,120]
[331253909,1720161052094,-1949.52,0.00055342,120]
[331253910,1720161052104,-500.0,0.00055342,120]
[331253911,1720161052114,-639.27,0.00055342,120]
[331253912,1720161052123,-500.0,0.00055342,120]
[331253913,1720161052132,-500.0,0.00055342,120]
[331253914,1720161052142,-500.0,0.00055342,120]
[331253915,1720161052151,-505.87378806,0.00055342,120]
[331253916,1720161052160,-3989.98,0.00055342,120]
[331253917,1720161052297,-466.0647924,0.00055342,120]
[331253918,1720161052311,-500.0,0.00055342,120]
[331253919,1720161052321,-500.0,0.00055342,120]
[331253920,1720161052330,-1086.21,0.00055342,120]
[331253921,1720161052340,-1842.02,0.00055342,120]
[331253922,1720161052351,-500.0,0.00055342,120]
[331253923,1720161052360,-500.0,0.00055342,120]
[331253924,1720161052369,-505.4,0.00055342,120]
[331253925,1720161052380,-500.0,0.00055342,120]
[331253926,1720161052389,-801.37,0.00055342,120]
[331253927,1720161052399,-500.0,0.00055342,120]
[331253928,1720161052409,-500.0,0.00055342,120]
[331253929,1720161052419,-500.0,0.00055342,120]
[331253930,1720161052431,-500.0,0.00055342,120]
[331253931,1720161052441,-500.0,0.00055342,120]
[331253932,1720161052450,-500.0,0.00055342,120]
[331253933,1720161052459,-500.0,0.00055342,120]
[331253934,1720161052469,-500.0,0.00055342,120]
[331253935,1720161052479,-4019.79,0.00055342,120]
[331253936,1720161052487,-11862.09,0.00055342,120]
[331253937,1720161052497,-677.63,0.00055342,120]
[331253938,1720161052508,-500.0,0.00055342,120]
[331253939,1720161052518,-1092.71,0.00055342,120]
[331253940,1720161052527,-500.0,0.00055342,2]
[331253941,1720161052538,-500.0,0.00055342,120]
[331253942,1720161052548,-2373.77,0.00055342,120]
[331253943,1720161052557,-500.0,0.00055342,120]
[331253944,1720161052568,-500.0,0.00055342,120]
[331253945,1720161052578,-710.01,0.00055342,120]
[331253946,1720161052588,-500.0,0.00055342,120]
[331253947,1720161052598,-500.0,0.00055342,120]
[331253948,1720161052608,-357.01772511,0.00055342,120]
[331253949,1720161052619,-687.88,0.00055342,120]
[331253950,1720161052628,-500.0,0.00055342,120]
[331253951,1720161052638,-500.0,0.00055342,120]
[331253952,1720161052648,-500.0,0.00055342,120]
[331253953,1720161052657,-2188.27,0.00055342,120]
[331253954,1720161052667,-500.0,0.00055342,120]
[331253955,1720161052676,-1801.09,0.00055342,120]
[331253956,1720161052687,-500.0,0.00055342,120]
[331253957,1720161052697,-500.0,0.00055342,120]
[331253958,1720161052708,-1114.43,0.00055342,120]
[331253959,1720161052718,-500.0,0.00055342,120]
[331253960,1720161052728,-521.79,0.00055342,120]
[331253961,1720161052741,-500.0,0.00055342,120]
[331253962,1720161052752,-1349.02,0.00055342,120]
[331253963,1720161052762,-500.0,0.00055342,120]
[331253964,1720161052772,-500.0,0.00055342,120]
[331253965,1720161052782,-500.0,0.00055342,120]
[331253966,1720161052792,-504.46621602,0.00055342,120]
[331253967,1720161052801,-1279.0,0.00055342,120]
[331253968,1720161052811,-500.0,0.00055342,120]
[331253969,1720161052820,-500.0,0.00055342,120]
[331253970,1720161052829,-500.0,0.00055342,120]
[331253971,1720161052838,-803.11,0.00055342,120]
[331253972,1720161052848,-859.99,0.00055342,120]
[331253973,1720161052857,-500.0,0.00055342,120]
[331253974,1720161052866,-552.19283289,0.00055342,120]
[331253975,1720161052876,-500.0,0.00055342,120]
[331253976,1720161052886,-500.0,0.00055342,120]
[331253977,1720161052895,-500.0,0.00055342,120]
[331253978,1720161052905,-2024.24,0.00055342,120]
[331253979,1720161052915,-500.0,0.00055342,120]
[331253980,1720161052925,-1069.58,0.00055342,120]
[331253981,1720161052936,-228.47415872,0.00055342,120]
[331253982,1720161052945,-10664.38,0.00055342,120]
[331253983,1720161052957,-500.0,0.00055342,60]
[331253984,1720161052967,-4002.1,0.00055342,120]
[331253985,1720161052977,-336.12749976,0.00055342,120]
[331253986,1720161052987,-14357.76,0.00055342,120]
[331253987,1720161052996,-500.0,0.00055342,120]
[331253988,1720161053009,-500.0,0.00055342,120]
[331253989,1720161053021,-500.0,0.00055342,120]
[331253990,1720161053030,-500.0,0.00055342,120]
[331253991,1720161053039,-500.0,0.00055342,120]
[331253992,1720161053049,-500.0,0.00055342,120]
[331253993,1720161053060,-500.0,0.00055342,120]
[331253994,1720161053070,-500.0,0.00055342,120]
[331253995,1720161053079,-500.0,0.00055342,120]
[331253996,1720161053089,-500.0,0.00055342,120]
[331253997,1720161053098,-500.0,0.00055342,120]
[331253998,1720161053107,-500.0,0.00055342,120]
[331253999,1720161053117,-500.0,0.00055342,120]
[331254000,1720161053126,-1580.21,0.00055342,21]
[331254001,1720161053136,-500.0,0.00055342,120]
[331254002,1720161053146,-500.0,0.00055342,120]
[331254003,1720161053155,-500.0,0.00055342,120]
[331254004,1720161053165,-500.0,0.00055342,120]
[331254005,1720161053174,-500.0,0.00055342,120]
[331254006,1720161053183,-151.0,0.00055534,120]
[331254007,1720161053192,-151.0,0.00055781,120]
[331254008,1720161053201,-159.284759,0.00055863,2]
[331254009,1720161053211,-500.0,0.0005589,120]
[331254010,1720161053220,-595.96325193,0.0005589,120]
[331254011,1720161053229,-500.0,0.0005589,120]
[331254012,1720161053238,-500.0,0.0005589,120]
[331254013,1720161053247,-500.0,0.0005589,120]
[331254014,1720161053259,-500.0,0.0005589,120]
[331254015,1720161053268,-500.0,0.0005589,120]
[331254016,1720161053277,-500.0,0.0005589,120]
[331254017,1720161053286,-500.0,0.0005589,120]
[331254018,1720161053303,-500.0,0.0005589,120]
[331254019,1720161053312,-500.0,0.0005589,120]
[331254020,1720161053322,-590.52934596,0.0005589,120]
[331254021,1720161053331,-500.0,0.0005589,120]
[331254022,1720161053341,-500.0,0.0005589,120]
[331254023,1720161053351,-500.0,0.0005589,120]
[331254024,1720161053361,-500.0,0.0005589,120]
[331254025,1720161053370,-500.0,0.0005589,120]
[331254026,1720161053379,-500.0,0.0005589,120]
[331254027,1720161053392,-500.0,0.0005589,120]
[331254028,1720161053401,-200.0,0.0005589,7]
[331254029,1720161053412,-500.0,0.0005589,120]
[331254030,1720161053421,-500.0,0.0005589,120]
[331254031,1720161053430,-500.0,0.0005589,120]
[331254032,1720161053442,-500.0,0.0005589,120]
[331254033,1720161053451,-500.0,0.0005589,120]
[331254034,1720161053460,-329.61332008,0.0005589,120]
[331254035,1720161053469,-500.0,0.0005589,120]
[331254036,1720161053479,-500.0,0.0005589,120]
[331254037,1720161053489,-500.0,0.0005589,120]
[331254038,1720161053498,-500.0,0.0005589,120]
[331254039,1720161053511,-282.75720772,0.0005589,120]
[331254040,1720161053521,-500.0,0.0005589,120]
[331254041,1720161053530,-774.94,0.0005589,120]
[331254042,1720161053540,-500.0,0.0005589,120]
[331254043,1720161053549,-500.0,0.0005589,120]
[331254044,1720161053558,-500.0,0.0005589,120]
[331254045,1720161053568,-1040.79,0.0005589,120]
[331254046,1720161053577,-500.0,0.0005589,120]
[331254047,1720161053587,-776.98,0.0005589,120]
[331254048,1720161053597,-500.0,0.0005589,120]
[331254049,1720161053606,-500.0,0.0005589,120]
[331254050,1720161053615,-521.83709131,0.0005589,120]
[331254051,1720161053624,-500.0,0.0005589,120]
[331254052,1720161053633,-500.0,0.0005589,120]
[331254053,1720161053643,-500.0,0.0005589,120]
[331254054,1720161053652,-500.0,0.0005589,120]
[331254055,1720161053663,-500.0,0.0005589,120]
[331254056,1720161053672,-778.44,0.0005589,120]
[331254057,1720161053681,-500.0,0.0005589,20]
[331254058,1720161053691,-1334.42,0.0005589,120]
[331254059,1720161053700,-500.0,0.0005589,120]
[331254060,1720161053709,-500.0,0.0005589,120]
[331254061,1720161053719,-500.0,0.0005589,120]
[331254062,1720161053728,-500.0,0.0005589,120]
[331254063,1720161053737,-876.06,0.0005589,120]
[331254064,1720161053748,-500.0,0.0005589,120]
[331254065,1720161053759,-500.0,0.0005589,120]
[331254066,1720161053769,-500.0,0.0005589,120]
[331254067,1720161053778,-500.0,0.0005589,120]
[331254068,1720161053790,-500.0,0.0005589,120]
[331254069,1720161053800,-500.0,0.0005589,120]
[331254070,1720161053809,-500.0,0.0005589,120]
[331254071,1720161053819,-500.0,0.0005589,120]
[331254072,1720161053828,-500.0,0.0005589,120]
[331254073,1720161053838,-500.0,0.0005589,120]
[331254074,1720161053849,-500.0,0.0005589,120]
[331254075,1720161053859,-500.0,0.0005589,120]
[331254076,1720161053870,-780.42,0.0005589,120]
[331254077,1720161053880,-500.0,0.0005589,120]
[331254078,1720161053889,-500.0,0.0005589,120]
[331254079,1720161053899,-983.03,0.0005589,120]
[331254080,1720161053908,-7842.55,0.0005589,120]
[331254081,1720161053919,-500.0,0.0005589,120]
[331254082,1720161053928,-500.0,0.0005589,120]
[331254083,1720161053937,-500.0,0.0005589,120]
[331254084,1720161053947,-500.0,0.0005589,120]
[331254085,1720161053957,-618.63761294,0.0005589,120]
[331254086,1720161053967,-500.0,0.0005589,120]
[331254087,1720161053977,-508.62919583,0.0005589,30]
[331254088,1720161053987,-500.0,0.0005589,120]
[331254089,1720161053996,-500.0,0.0005589,120]
[331254090,1720161054010,-577.772505,0.0005589,120]
[331254091,1720161054019,-500.0,0.0005589,120]
[331254092,1720161054028,-500.0,0.0005589,120]
[331254093,1720161054037,-500.0,0.0005589,120]
[331254094,1720161054046,-500.0,0.0005589,120]
[331254095,1720161054056,-584.4,0.0005589,120]
[331254096,1720161054064,-500.0,0.0005589,120]
[331254097,1720161054074,-504.54461831,0.0005589,120]
[331254098,1720161054083,-503.68372807,0.0005589,120]
[331254099,1720161054092,-562.51727764,0.0005589,120]
[331254100,1720161054101,-509.98265458,0.0005589,120]
[331254101,1720161054111,-500.0,0.0005589,120]
[331254102,1720161054120,-500.0,0.0005589,120]
[331254103,1720161054130,-500.0,0.0005589,120]
[331254104,1720161054139,-500.0,0.0005589,120]
[331254105,1720161054151,-670.8,0.0005589,120]
[331254106,1720161054160,-511.49,0.0005589,120]
[331254107,1720161054169,-500.0,0.0005589,120]
[331254108,1720161054179,-500.0,0.0005589,120]
[331254109,1720161054188,-500.0,0.0005589,120]
[331254110,1720161054199,-490.1,0.0005589,120]
[331254111,1720161054209,-500.0,0.0005589,120]
[331254112,1720161054218,-731.58,0.0005589,120]
[331254113,1720161054228,-500.0,0.0005589,120]
[331254114,1720161054237,-500.0,0.0005589,120]
[331254115,1720161054247,-388.65027511,0.0005589,120]
[331254116,1720161054257,-500.0,0.0005589,120]
[331254117,1720161054266,-500.0,0.0005589,120]
[331254118,1720161054276,-541.02496247,0.0005589,120]
[331254119,1720161054285,-500.0,0.0005589,120]
[331254120,1720161054295,-667.14,0.0005589,120]
[331254121,1720161054308,-210.25013557,0.0005589,120]
[331254122,1720161054317,-500.0,0.0005589,120]
[331254123,1720161054326,-500.0,0.0005589,120]
[331254124,1720161054335,-500.0,0.0005589,120]
[331254125,1720161054345,-3106.8,0.0005589,120]
[331254126,1720161054354,-808.47,0.0005589,120]
[331254127,1720161054364,-3479.45,0.0005589,120]
[331254128,1720161054375,-500.0,0.0005589,120]
[331254129,1720161054388,-500.0,0.0005589,120]
[331254130,1720161054399,-500.0,0.0005589,120]
[331254131,1720161054409,-691.25,0.0005589,120]
[331254132,1720161054419,-574.85,0.0005589,120]
[331254133,1720161054429,-500.0,0.0005589,120]
[331254134,1720161054438,-500.0,0.0005589,120]
[331254135,1720161054446,-500.0,0.0005589,120]
[331254136,1720161054455,-500.0,0.0005589,120]
[331254137,1720161054464,-522.13314789,0.0005589,120]
[331254138,1720161054473,-786.58,0.0005589,120]
[331254139,1720161054482,-500.0,0.0005589,120]
[331254140,1720161054491,-500.0,0.0005589,120]
[331254141,1720161054500,-500.0,0.0005589,120]
[331254142,1720161054512,-500.0,0.0005589,120]
[331254143,1720161054521,-639.27,0.0005589,120]
[331254144,1720161054530,-500.0,0.0005589,120]
[331254145,1720161054539,-500.0,0.0005589,120]
[331254146,1720161054548,-1949.52,0.0005589,120]
[331254147,1720161054558,-500.0,0.0005589,120]
[331254148,1720161054567,-3989.98,0.0005589,120]
[331254149,1720161054578,-643.3462903,0.0005589,120]
[331254150,1720161054589,-1086.21,0.0005589,120]
[331254151,1720161054599,-500.0,0.0005589,120]
[331254152,1720161054608,-500.0,0.0005589,120]
[331254153,1720161054617,-500.0,0.0005589,120]
[331254154,1720161054627,-1842.02,0.0005589,120]
[331254155,1720161054636,-505.4,0.0005589,120]
[331254156,1720161054645,-500.0,0.0005589,120]
[331254157,1720161054654,-801.37,0.0005589,120]
[331254158,1720161054663,-500.0,0.0005589,120]
[331254159,1720161054673,-500.0,0.0005589,120]
[331254160,1720161054682,-508.29270027,0.0005589,120]
[331254161,1720161054692,-500.0,0.0005589,120]
[331254162,1720161054701,-500.0,0.0005589,120]
[331254163,1720161054710,-500.0,0.0005589,120]
[331254164,1720161054719,-500.0,0.0005589,120]
[331254165,1720161054729,-500.0,0.0005589,120]
[331254166,1720161054739,-4019.79,0.0005589,120]
[331254167,1720161054749,-11862.09,0.0005589,120]
[331254168,1720161054761,-677.63,0.0005589,120]
[331254169,1720161054771,-500.0,0.0005589,120]
[331254170,1720161054781,-1092.71,0.0005589,120]
[331254171,1720161054791,-504.19452663,0.0005589,2]
[331254172,1720161054800,-500.0,0.0005589,120]
[331254173,1720161054810,-2373.77,0.0005589,120]
[331254174,1720161054819,-500.0,0.0005589,120]
[331254175,1720161054828,-500.0,0.0005589,120]
[331254176,1720161054838,-710.01,0.0005589,120]
[331254177,1720161054848,-500.0,0.0005589,120]
[331254178,1720161054858,-508.760888,0.0005589,120]
[331254179,1720161054867,-687.88,0.0005589,120]
[331254180,1720161054876,-500.0,0.0005589,120]
[331254181,1720161054886,-500.0,0.0005589,120]
[331254182,1720161054895,-500.0,0.0005589,120]
[331254183,1720161054904,-2188.27,0.0005589,120]
[331254184,1720161054914,-500.0,0.0005589,120]
[331254185,1720161054923,-1801.09,0.0005589,120]
[331254186,1720161054932,-500.0,0.0005589,120]
[331254187,1720161054942,-500.0,0.0005589,120]
[331254188,1720161054952,-1114.43,0.0005589,120]
[331254189,1720161054961,-500.0,0.0005589,120]
[331254190,1720161054971,-521.79,0.0005589,120]
[331254191,1720161054981,-500.0,0.0005589,120]
[331254192,1720161054991,-500.0,0.0005589,120]
[331254193,1720161055001,-1349.02,0.0005589,120]
[331254194,1720161055013,-500.0,0.0005589,120]
[331254195,1720161055023,-500.0,0.0005589,120]
[331254196,1720161055032,-500.0,0.0005589,120]
[331254197,1720161055043,-1279.0,0.0005589,120]
[331254198,1720161055052,-500.0,0.0005589,120]
[331254199,1720161055062,-500.0,0.0005589,120]
[331254200,1720161055072,-803.11,0.0005589,120]
[331254201,1720161055081,-859.99,0.0005589,120]
[331254202,1720161055090,-500.0,0.0005589,120]
[331254203,1720161055100,-500.0,0.0005589,120]
[331254204,1720161055110,-500.0,0.0005589,120]
[331254205,1720161055119,-500.0,0.0005589,120]
[331254206,1720161055129,-2024.24,0.0005589,120]
[331254207,1720161055139,-500.0,0.0005589,120]
[331254208,1720161055148,-1069.58,0.0005589,120]
[331254209,1720161055158,-10664.38,0.0005589,120]
[331254210,1720161055167,-335.71939004,0.0005589,60]
[331254211,1720161055177,-4002.1,0.0005589,120]
[331254212,1720161055187,-14357.76,0.0005589,120]
[331254213,1720161055197,-500.0,0.0005589,120]
[331254214,1720161055206,-500.0,0.0005589,120]
[331254215,1720161055215,-500.0,0.0005589,120]
[331254216,1720161055224,-500.0,0.0005589,120]
[331254217,1720161055234,-500.0,0.0005589,120]
[331254218,1720161055244,-500.0,0.0005589,120]
[331254219,1720161055253,-500.0,0.0005589,120]
[331254220,1720161055266,-500.0,0.0005589,120]
[331254221,1720161055275,-500.0,0.0005589,120]
[331254222,1720161055284,-500.0,0.0005589,120]
[331254223,1720161055293,-500.0,0.0005589,120]
[331254224,1720161055307,-500.0,0.0005589,120]
[331254225,1720161055316,-500.0,0.0005589,120]
[331254226,1720161055326,-1580.21,0.0005589,21]
[331254227,1720161055336,-500.0,0.0005589,120]
[331254228,1720161055346,-500.0,0.0005589,120]
[331254229,1720161055356,-500.0,0.0005589,120]
[331254230,1720161055365,-500.0,0.0005589,120]
[331254231,1720161055375,-500.0,0.0005589,120]
[331254232,1720161055387,-1071.0,0.00056,120]
[331254233,1720161055398,-1071.0,0.00056,120]
[331254234,1720161055408,-1071.0,0.00056,120]
[331254235,1720161055417,-1071.0,0.00056,120]
[331254236,1720161055426,-1071.0,0.00056,120]
[331254237,1720161055436,-1071.0,0.00056,120]
[331254238,1720161055446,-1071.0,0.00056,120]
[331254239,1720161055455,-1071.0,0.00056,120]
[331254240,1720161055465,-1071.0,0.00056,120]
[331254241,1720161055474,-500.0,0.00056438,120]
[331254242,1720161055483,-544.39885892,0.00056438,120]
[331254243,1720161055492,-200.0,0.00056438,7]
[331254244,1720161055501,-273.20871179,0.00056438,120]
[331254245,1720161055513,-385.6383355,0.00056438,120]
[331254246,1720161055522,-241.45,0.00056438,120]
[331254247,1720161055531,-500.0,0.00056438,120]
[331254248,1720161055541,-500.0,0.00056438,120]
[331254249,1720161055551,-500.0,0.00056438,120]
[331254250,1720161055560,-500.0,0.00056438,120]
[331254251,1720161055570,-500.0,0.00056438,120]
[331254252,1720161055580,-500.0,0.00056438,120]
[331254253,1720161055591,-500.0,0.00056438,120]
[331254254,1720161055602,-774.94,0.00056438,120]
[331254255,1720161055612,-584.89677362,0.00056438,120]
[331254256,1720161055622,-500.0,0.00056438,120]